Cogmind - Beta 15 *** ADVENTURER MODE // 2025.09.07 @ 23:39:27 Player: anung_un_rama Result: Destroyed by Cetus Guard with Advanced Variable Charge Gun Performance ------------- Evolutions (4) 2000 Regions Visited (13) 2600 Robots Destroyed (199) 995 Value Destroyed (6131) 6131 Prototype IDs (15) 300 Alien Tech Used (0) 0 Bonus (467) 467 TOTAL SCORE: 12493 Bonus ------- High Alert Combat Kills 76 Follower Combat Kills 91 Met Data Miner 300 Cogmind --------- Core Integrity 0/850 Matter 46/300 Energy 99/100 System Corruption 5% Temperature Cool (9) Movement Core (50) Location -6/Cetus Parts ------- > --- POWER (1) -------- (None) > --- PROPULSION (4) --- (None) > --- UTILITY (6) ------ (None) > --- WEAPON (4) ------- (None) > --- INVENTORY (5) ---- Recoil Stabilizer Weapon Cycler Heavy Rocket Launcher Peak State ------------ > --- POWER ------------ Enhanced Nuclear Core > --- PROPULSION ------- Armored Treads Improved Medium Treads Improved Medium Treads Improved Medium Treads > --- UTILITY ---------- High-capacity Storage Unit Advanced Sensor Array Advanced Signal Interpreter Kinecellerator Weapon Cycler Hardened Medium Armor Plating > --- WEAPON ----------- Gauss Rifle Precision Assault Rifle Heavy Battle Rifle Heavy Machine Gun > --- INVENTORY -------- Improved Deuterium Engine Armored Treads Armored Treads Advanced Treads Advanced Treads Advanced Treads Improved Medium Treads Improved Cooling System High-capacity Matter Pod Advanced Signal Interpreter Advanced Signal Interpreter Recoil Stabilizer Weapon Cycler Improved Shield Generator Tractor Beam Autogun Battle Rifle Heavy Rocket Launcher Rocket Array Precision Rocket Launcher [Rating: 70] Favorites ----------- Power Enhanced Nuclear Core Engine Ion Engine Power Core Enhanced Nuclear Core Propulsion Medium Treads Treads Medium Treads Utility High-capacity Storage Unit Device Seismic Detector Storage High-capacity Storage Unit Processor Improved Signal Interpreter Protection Hardened Medium Armor Plating Weapon Gauss Rifle Energy Gun Improved Medium Laser Ballistic Gun Gauss Rifle Ballistic Cannon Flak Cannon Launcher Rocket Launcher Slashing Weapon Scythe Build | -11 -10 -10 -10 -9 -8 -7 -7 -7 -7 -6 -6 -6 -6 ------- Run | Yrd Mat Min Exi Min Mat Fac Low Low Dat Pro Fac Ext Cet Slots Evolved 8 | . . . . . 4 2 . . . . 2 . . Power . | . . . . . . . . . . . . . . Propulsion 2 | . . . . . 1 . . . . . 1 . . Utility 4 | . . . . . 2 1 . . . . 1 . . Weapon 2 | . . . . . 1 1 . . . . . . . Parts Attached 67 | 7 4 1 . . 13 15 4 2 . 2 12 4 3 Power 7 | 1 1 . . . 1 2 . . . . 1 . 1 Engine 6 | 1 1 . . . 1 1 . . . . 1 . 1 Core 1 | . . . . . . 1 . . . . . . . Reactor . | . . . . . . . . . . . . . . Propulsion 18 | 2 . . . . 6 1 1 1 . . 4 1 2 Treads 18 | 2 . . . . 6 1 1 1 . . 4 1 2 Leg . | . . . . . . . . . . . . . . Wheel . | . . . . . . . . . . . . . . Hover . | . . . . . . . . . . . . . . Flight . | . . . . . . . . . . . . . . Utility 19 | 2 1 . . . 3 4 1 . . 2 3 3 . Device 10 | 1 . . . . 1 2 1 . . 2 1 2 . Storage 3 | 1 1 . . . . . . . . . . 1 . Processor 2 | . . . . . . 1 . . . . 1 . . Hackware . | . . . . . . . . . . . . . . Protection 4 | . . . . . 2 1 . . . . 1 . . Artifact . | . . . . . . . . . . . . . . Weapon 23 | 2 2 1 . . 3 8 2 1 . . 4 . . Energy Gun 1 | . 1 . . . . . . . . . . . . Energy Cannon . | . . . . . . . . . . . . . . Ballistic Gun 14 | 2 . . . . 3 5 1 1 . . 2 . . Ballistic Cannon 1 | . . . . . . 1 . . . . . . . Launcher 6 | . 1 1 . . . 1 1 . . . 2 . . Special Weapon . | . . . . . . . . . . . . . . Impact Weapon . | . . . . . . . . . . . . . . Slashing Weapon 1 | . . . . . . 1 . . . . . . . Piercing Weapon . | . . . . . . . . . . . . . . Special Melee Weapon . | . . . . . . . . . . . . . . Unidentified Prototypes 5 | . 1 . . . 1 3 . . . . . . . Parts Lost 24 | . . . . . . 1 2 . . . 2 7 12 Power 2 | . . . . . . . . . . . . 1 1 Propulsion 10 | . . . . . . 1 1 . . . . 2 6 Utility 5 | . . . . . . . 1 . . . . . 4 Weapon 7 | . . . . . . . . . . . 2 4 1 Highest Loss Streak 8 | . . . . . . 1 1 . . . 2 4 8 To Critical Strikes 4 | . . . . . . . . . . . . . 4 Average Backups 15 | 1 4 7 9 9 16 19 18 19 20 20 19 17 11 Power 1 | . 1 2 2 2 1 1 1 1 1 1 1 . . Propulsion 4 | . . 1 1 1 4 6 7 7 7 7 6 5 2 Utility 5 | . 1 2 3 3 6 8 7 7 7 7 7 8 6 Weapon 3 | . 1 2 3 3 3 2 2 4 5 5 4 2 1 Tool/Special . | . . . . . . . . . . . . . . Unused Backups 20 | . . 1 . . 5 3 . 3 . 1 2 . 5 Power 3 | . . . . . 2 1 . . . . . . . Propulsion 6 | . . . . . . . . 2 . 1 2 . 1 Utility 11 | . . 1 . . 3 2 . 1 . . . . 4 Weapon . | . . . . . . . . . . . . . . Tool/Special . | . . . . . . . . . . . . . . Average Slot Usage (%) 95 | . 100 100 100 100 89 92 98 100 73 99 99 85 43 Engine 5 | . 14 14 14 14 9 2 . . . . 2 5 3 Core 3 | . . . . . . 4 7 7 7 7 3 . . Treads 25 | . 28 28 28 28 26 22 22 23 23 23 26 25 16 Device 14 | . 14 14 14 14 12 12 15 15 15 15 19 19 7 Storage 9 | . 14 14 14 14 9 7 7 7 7 7 6 6 4 Processor 3 | . . . . . . 3 7 7 7 7 6 6 4 Protection 4 | . . . . . 5 6 5 7 7 6 6 6 3 Ballistic Gun 23 | . 25 14 14 14 26 29 29 29 3 29 25 8 . Launcher 3 | . 2 14 14 14 . . . . . . . 3 1 Peak Build Rating 70 | 7 9 10 10 10 36 55 54 54 53 55 70 70 55 Average Rating 36 | 5 7 8 10 10 29 46 52 52 37 53 67 57 29 On Entrance 32 | . 7 8 10 10 10 35 50 52 53 53 55 66 52 Naked Turns 33 | . . . . . . . . . . . . . 33 Heaviest Build 84 | 14 51 52 52 52 66 79 78 77 75 77 84 74 68 Greatest Support 112 | 40 40 40 40 40 84 84 84 78 76 76 110 110 112 Greatest Overweight (x) 1 | . 1 1 1 1 1 . . 1 . 1 . . . Average Overweight (x) . | . . 1 1 1 . . . . . . . . . Largest Inventory Capacity 20 | 8 20 20 20 20 20 20 20 20 20 20 20 20 20 Average Capacity 19 | 7 19 20 20 20 20 20 20 20 20 20 20 20 15 Most Carried 20 | 2 7 10 10 10 20 20 20 20 20 20 20 18 16 Average Carried 15 | 1 4 8 10 10 16 19 18 19 20 20 19 17 11 Final Capacity 20 | 8 20 20 20 20 20 20 20 20 20 20 20 20 5 Final Carried 20 | 2 7 10 10 10 20 18 18 20 20 20 18 16 3 Class Distribution -------------------- 36% | Mutant 35% | Skirmisher 21% | Tank Dominant Class ---------------- Mutant | -10/Materials Mutant | -10/Mines Mutant | -10/Exiles Mutant | -9/Mines Tank | -8/Materials Tank | -7/Factory Skirmisher | -7/Lower Caves Skirmisher | -7/Lower Caves Mutant | -7/Data Miner Skirmisher | -6/Proximity Caves Skirmisher | -6/Factory Mutant | -6/Extension Mutant | -6/Cetus Resources | -11 -10 -10 -10 -9 -8 -7 -7 -7 -7 -6 -6 -6 -6 ----------- Run | Yrd Mat Min Exi Min Mat Fac Low Low Dat Pro Fac Ext Cet Matter Collected 5501 | 278 205 324 . 55 743 1440 434 360 . 375 562 714 11 Remotely 378 | . . . . . . . . . . . . 378 . Salvage Created 6369 | 87 306 . . . 1051 1833 286 271 . 156 624 1733 22 Parts 349 | 10 21 . . . 69 106 15 17 . 14 28 68 1 Haulers Intercepted 13 | . 2 . . . 3 3 . . . . 2 3 . Recyclers Shooed 10 | 1 . . . . 2 4 . . . . . 3 . Parts Field Recycled . | . . . . . . . . . . . . . . Retrieved Matter . | . . . . . . . . . . . . . . Parts Self-Destructed 37 | . . . . . . . 13 10 . 14 . . . Prevented . | . . . . . . . . . . . . . . Kills | -11 -10 -10 -10 -9 -8 -7 -7 -7 -7 -6 -6 -6 -6 ------- Run | Yrd Mat Min Exi Min Mat Fac Low Low Dat Pro Fac Ext Cet Combat Hostiles Destroyed 115 | . 7 . . . 19 27 11 11 . 6 8 25 1 Melee 1 | . . . . . . 1 . . . . . . . Guns 51 | . 4 . . . 13 20 4 3 . 2 5 . . AOE 63 | . 3 . . . 6 6 7 8 . 4 3 25 1 Classes Destroyed 16 | 2 4 . . . 4 3 1 1 . . . 1 . Worker 23 | 1 . . . . 3 8 . . . . 3 8 . Builder 14 | . . . . . . 3 . . . . 1 10 . Tunneler 6 | 3 . . . . . . . . . . . 3 . Hauler 13 | . 2 . . . 3 3 . . . . 2 3 . Recycler 12 | . . . . . 1 5 . . . . . 6 . Operator 1 | . . . . . 1 . . . . . . . . Watcher 15 | . 3 . . . 2 5 . . . . 2 2 1 Swarmer 26 | . 3 . . . 3 3 6 4 . 4 3 . . Grunt 51 | . 4 . . . 10 13 2 3 . . 3 16 . Brawler 1 | . . . . . . . . 1 . . . . . Duelist 4 | . . . . . 1 . . . . . . 3 . Sentry 11 | . . . . . 5 3 . . . 1 . 2 . Hunter 6 | . . . . . . 2 1 2 . . . 1 . Programmer 11 | . . . . . . 6 1 . . 1 2 1 . Behemoth 2 | . . . . . . . . . . . . 2 . Cetus Guard 1 | . . . . . . . . . . . . . 1 Mutant 2 | . . . . . . . 1 1 . . . . . Best Kill Streak 22 | 3 3 . . . 4 6 4 4 . 4 5 22 2 Combat Bots Only 10 | . 3 . . . 3 3 4 4 . 4 4 10 1 Max Kills in Single Turn 7 | 1 1 . . . 2 4 3 3 . 3 3 7 1 Gunslinging 1 | . . . . . . 1 . . . . . . . Exploded 7 | . 1 . . . 2 3 3 3 . 3 3 7 1 Melee 1 | . . . . . . 1 . . . . . . . Uniques/NPCs Destroyed . | . . . . . . . . . . . . . . Combat | -11 -10 -10 -10 -9 -8 -7 -7 -7 -7 -6 -6 -6 -6 -------- Run | Yrd Mat Min Exi Min Mat Fac Low Low Dat Pro Fac Ext Cet Hostile Shots Fired 731 | . 53 . . . 69 161 51 18 . 38 39 158 144 Missed 241 | . 20 . . . 21 57 15 5 . 12 12 60 39 Hits 490 | . 33 . . . 48 104 36 13 . 26 27 98 105 Projectile 490 | . 33 . . . 48 104 36 13 . 26 27 98 105 Critical Strikes 26 | . 2 . . . 1 4 2 . . . 1 5 11 Damage Taken 6792 | . 269 . 38 . 604 1072 489 161 . 224 439 1252 2244 Core 1161 | . 41 . . . 85 100 51 . . 24 8 104 748 Absorbed by Shields 201 | . . . . . . . . . . . 20 158 23 Ignored by Resistances 2013 | . 88 . 10 . 171 334 143 47 . 75 122 409 614 Regen/Repaired (Parts) 314 | . . . . . 102 10 . . . . . 178 24 Core Remaining (%) 85 | 100 . . . 83 84 . . . . 75 . . . Volleys Fired 353 | 10 49 . 1 . 86 80 21 19 . 9 27 46 5 Largest 4 | 2 2 . 2 . 3 4 4 4 . 4 4 4 1 Hottest 127 | 40 40 . 53 . 63 107 114 114 . 119 119 127 43 Shots Fired 972 | 20 85 . 2 . 244 298 66 52 . 25 86 89 5 Gun 879 | 20 72 . 1 . 237 292 60 44 . 21 80 52 . Cannon 3 | . . . . . . 3 . . . . . . . Launcher 90 | . 13 . 1 . 7 3 6 8 . 4 6 37 5 Special . | . . . . . . . . . . . . . . Kinetic 882 | 20 72 . 1 . 237 295 60 44 . 21 80 52 . Thermal . | . . . . . . . . . . . . . . Explosive 90 | . 13 . 1 . 7 3 6 8 . 4 6 37 5 Electromagnetic . | . . . . . . . . . . . . . . Robot Hit Streak 45 | 7 8 . . . 35 45 13 11 . 4 25 28 17 Robot Miss Streak 5 | 1 2 . . . 3 5 3 2 . 2 3 3 . Penetration Max 1 | . . . . . . 1 . . . . 1 1 . Secondary Targets 6 | . 1 . . . 2 1 1 . . . 1 . . Max Gunslinging Chain 1 | . 1 . . . 1 1 1 . . . 1 . . Shots Hit Robots 660 | 14 49 . . . 187 204 38 30 . 12 62 62 2 Core Hits 489 | 7 31 1 . . 70 97 20 26 . 12 26 175 24 Critical Kills . | . . . . . . . . . . . . . . Critical Parts Destroyed 7 | . . . . . 1 3 1 . . . 1 1 . Critical Strikes 7 | . . . . . 1 3 1 . . . 1 1 . Destroy 7 | . . . . . 1 3 1 . . . 1 1 . Melee Attacks 1 | . . . . . . 1 . . . . . . . Impact . | . . . . . . . . . . . . . . Slashing 1 | . . . . . . 1 . . . . . . . Piercing . | . . . . . . . . . . . . . . Sneak Attacks . | . . . . . . . . . . . . . . Combat Hostiles . | . . . . . . . . . . . . . . Follow-up Attacks . | . . . . . . . . . . . . . . Damage Inflicted 21601 | 147 901 50 . . 2622 5073 1241 1087 . 500 1803 7411 766 Guns 9779 | 147 537 . . . 2094 3554 640 276 . 259 1496 776 . Cannons . | . . . . . . . . . . . . . . Explosions 11582 | . 350 . . . 526 1394 601 811 . 241 307 6625 727 Melee . | . . . . . . . . . . . . . . Ramming 240 | . 14 50 . . 2 125 . . . . . 10 39 Kinetic 9779 | 147 537 . . . 2094 3554 640 276 . 259 1496 776 . Thermal 745 | . . . . . . 745 . . . . . . . Explosive 10837 | . 350 . . . 526 649 601 811 . 241 307 6625 727 Electromagnetic . | . . . . . . . . . . . . . . Impact . | . . . . . . . . . . . . . . Slashing . | . . . . . . . . . . . . . . Piercing . | . . . . . . . . . . . . . . Highest Corruption 5 | . . . . . . 3 3 3 3 3 2 5 5 Average Corruption 2 | . . . . . . 2 3 3 3 3 1 3 5 Corruption Purged . | . . . . . . . . . . . . . . Corruption Blocked . | . . . . . . . . . . . . . . Effects 135 | . . . . . . 33 21 30 3 19 8 18 3 Message Errors 41 | . . . . . . 11 6 11 . 4 2 5 2 Matter Fused 30 | . . . . . . 8 2 6 3 6 1 4 . Heat Flow Errors 14 | . . . . . . 6 2 2 . 1 1 1 1 Energy Discharges 16 | . . . . . . 1 6 4 . 2 . 3 . Parts Fused 3 | . . . . . . 3 . . . . . . . Data Loss (minor) 14 | . . . . . . 1 3 3 . 5 1 1 . Data Loss (major) 7 | . . . . . . 1 2 . . . 3 1 . Misfires 8 | . . . . . . 1 . 3 . 1 . 3 . Alerts 2 | . . . . . . 1 . 1 . . . . . Overload Shots . | . . . . . . . . . . . . . . Overflow Damage 269 | . 6 . . . . 77 10 . . . . 176 . Projectiles . | . . . . . . . . . . . . . . Explosions 264 | . 6 . . . . 72 10 . . . . 176 . Melee 5 | . . . . . . 5 . . . . . . . Knockbacks 2 | . . 1 . . . 1 . . . . . . . Impact 2 | . . 1 . . . 1 . . . . . . . Kinetic . | . . . . . . . . . . . . . . Secondary . | . . . . . . . . . . . . . . Self-Inflicted Damage 443 | . . . 39 . . 106 39 24 . 28 71 136 . Shots 18 | . . . 1 . . 2 2 1 . 2 2 8 . Rammed 32 | . 4 10 . . 1 9 . . . . . 1 7 Targets Rammed 35 | . 4 10 . . 2 11 . . . . . 1 7 Kicked . | . . . . . . . . . . . . . . Crushed 3 | . . . . . 1 2 . . . . . . . Highest Temperature 418 | . 43 . . . 27 260 324 309 . 314 418 243 163 Average Temperature 74 | . 15 . . . 7 63 102 94 . 130 130 37 62 Received Heat Transfer 2207 | . 183 . . . 333 315 120 . . 42 144 584 486 Effects 4 | . . . . . . 2 . . . . 2 . . Interference 2 | . . . . . . 2 . . . . . . . Matter Decay 1 | . . . . . . . . . . . 1 . . Damage (minor) 1 | . . . . . . . . . . . 1 . . Siege Activations . | . . . . . . . . . . . . . . Martial Activations . | . . . . . . . . . . . . . . Shielding Activations . | . . . . . . . . . . . . . . Robots Disrupted . | . . . . . . . . . . . . . . Combat Hostiles . | . . . . . . . . . . . . . . Robots Corrupted . | . . . . . . . . . . . . . . Combat Hostiles . | . . . . . . . . . . . . . . Parts Fried . | . . . . . . . . . . . . . . Impact Corruptions 1 | . . . . . . 1 . . . . . . . Robots Melted . | . . . . . . . . . . . . . . Combat Hostiles . | . . . . . . . . . . . . . . Parts Melted . | . . . . . . . . . . . . . . Heat Transferred 550 | . . . . . . 550 . . . . . . . Parts Sabotaged . | . . . . . . . . . . . . . . Parts Stolen . | . . . . . . . . . . . . . . Parts Stripped . | . . . . . . . . . . . . . . Power Chain Reactions . | . . . . . . . . . . . . . . Alert | -11 -10 -10 -10 -9 -8 -7 -7 -7 -7 -6 -6 -6 -6 ------- Run | Yrd Mat Min Exi Min Mat Fac Low Low Dat Pro Fac Ext Cet Maximum Alert Level 2 | . . . . . . . . . . . . 2 1 Low Security (%) 94 | 100 100 100 . 100 100 100 . . . . 100 41 59 Level 1 4 | . . . . . . . . . . . . 45 40 Level 2 1 | . . . . . . . . . . . . 13 . Level 3 . | . . . . . . . . . . . . . . Level 4 . | . . . . . . . . . . . . . . Level 5 . | . . . . . . . . . . . . . . High Security . | . . . . . . . . . . . . . . Max Security . | . . . . . . . . . . . . . . Peak Influence 524 | 5 118 12 . . 136 146 . . . . 90 524 258 Initial 240 | . . 12 . . . 2 . . . . . 29 240 Average 42 | . 18 . . . 51 33 . . . . 17 228 185 Influence Increases 3913 | 20 294 . . . 592 1067 293 240 . 140 336 868 63 Destroy 0b10 Robot/C 2300 | . 140 . . . 380 540 240 200 . 120 160 500 20 Destroy 0b10 Robot/NC 420 | 20 25 . . . 50 120 . . . . 40 160 5 Destroy Leader 546 | . 40 . . . 100 186 50 40 . 20 46 64 . Allied During Kill 4 | . . . . . 1 . 3 . . . . . . Successful Hack 43 | . 3 . . . 13 . . . . . 12 . 15 Disable Machine 171 | . 27 . . . . 117 . . . . 27 . . Destroy Structure 384 | . 44 . . . 33 104 . . . . 51 129 23 Lose Combat Pursuer 45 | . 15 . . . 15 . . . . . . 15 . Influence Decreases 3800 | 20 256 38 . . 585 958 369 260 20 140 266 444 444 Entered New Map 411 | . . 26 . . . 5 53 12 20 . . 41 254 Time Decay 3152 | 20 256 12 . . 565 943 316 248 . 140 239 343 70 Lost Part 207 | . . . . . . 10 . . . . 17 60 120 Lost Ally 30 | . . . . . 20 . . . . . 10 . . Squads Dispatched 20 | . . . . . 1 12 . . . . 2 2 3 Investigation 7 | . . . . . . 3 . . . . 1 . 3 Extermination 7 | . . . . . . 6 . . . . 1 . . Reinforcement 6 | . . . . . 1 3 . . . . . 2 . Assault . | . . . . . . . . . . . . . . Garrison . | . . . . . . . . . . . . . . Intercept . | . . . . . . . . . . . . . . Searches Triggered . | . . . . . . . . . . . . . . Data Miner Redirects 3 | . . . . . . . . . . . . . 3 Construction Impeded 3 | . . . . . . 1 . . . . . 2 . Haulers Reinforced 1 | . . . . . . 1 . . . . . . . Active Scanning Responses . | . . . . . . . . . . . . . . Cargo Convoy Interrupts . | . . . . . . . . . . . . . . Stealth | -11 -10 -10 -10 -9 -8 -7 -7 -7 -7 -6 -6 -6 -6 --------- Run | Yrd Mat Min Exi Min Mat Fac Low Low Dat Pro Fac Ext Cet Distress Signals 10 | . 1 . . 1 3 2 . . . . 1 1 1 Communications Jammed . | . . . . . . . . . . . . . . Distress Signals . | . . . . . . . . . . . . . . Times Spotted 154 | . 15 2 . . 27 32 13 8 . 6 10 31 10 Peak Tracking Total 11 | . 3 . . . 4 3 3 1 . 4 4 8 11 Tactical Retreats 3 | . 1 . . . 1 . . . . . . 1 . Traps | -11 -10 -10 -10 -9 -8 -7 -7 -7 -7 -6 -6 -6 -6 ------- Run | Yrd Mat Min Exi Min Mat Fac Low Low Dat Pro Fac Ext Cet Traps Triggered 7 | . 1 . . . 1 4 . . . . 1 . . Indirectly . | . . . . . . . . . . . . . . Trap Hack Attempts . | . . . . . . . . . . . . . . Triggered . | . . . . . . . . . . . . . . Disarmed . | . . . . . . . . . . . . . . Reprogrammed . | . . . . . . . . . . . . . . Reused . | . . . . . . . . . . . . . . Traps Extracted . | . . . . . . . . . . . . . . Installed . | . . . . . . . . . . . . . . Triggered . | . . . . . . . . . . . . . . Machines | -11 -10 -10 -10 -9 -8 -7 -7 -7 -7 -6 -6 -6 -6 ---------- Run | Yrd Mat Min Exi Min Mat Fac Low Low Dat Pro Fac Ext Cet Machines Disabled 22 | . 3 . . . . 13 2 1 . . 3 . . Max in Single Turn 4 | . 2 . . . . 4 1 1 . . 1 . . Machines Repaired . | . . . . . . . . . . . . . . Machines Dismantled . | . . . . . . . . . . . . . . Machines Sabotaged . | . . . . . . . . . . . . . . Overloaded Fab Kills . | . . . . . . . . . . . . . . Hacking | -11 -10 -10 -10 -9 -8 -7 -7 -7 -7 -6 -6 -6 -6 --------- Run | Yrd Mat Min Exi Min Mat Fac Low Low Dat Pro Fac Ext Cet Machines Accessed 30 | . 4 1 4 . 4 8 . . 4 . 1 1 3 Terminals 19 | . 4 1 . . 3 7 . . . . . 1 3 Fabricators 1 | . . . . . . . . . . . 1 . . Repair Stations 1 | . . . . . 1 . . . . . . . . Recycling Units 1 | . . . . . . 1 . . . . . . . Scanalyzers . | . . . . . . . . . . . . . . Garrison Access . | . . . . . . . . . . . . . . Total Hacks 76 | . 9 2 4 . 8 13 . . 28 . 3 1 8 Successful 49 | . 3 1 4 . 5 2 . . 28 . 2 1 3 Failed 27 | . 6 1 . . 3 11 . . . . 1 . 5 Catastrophic 10 | . 1 . . . 1 6 . . . . . . 2 Database Lockouts . | . . . . . . . . . . . . . . Manual 24 | . 6 . 1 . 4 8 . . . . 1 . 4 Terminals 37 | . 9 2 . . 6 11 . . . . . 1 8 Fabricators 3 | . . . . . . . . . . . 3 . . Repair Stations 2 | . . . . . 2 . . . . . . . . Recycling Units 2 | . . . . . . 2 . . . . . . . Scanalyzers . | . . . . . . . . . . . . . . Garrison Access . | . . . . . . . . . . . . . . Terminal Hacks 44 | . 3 1 4 . 3 1 . . 28 . . 1 3 Record 17 | . . . 4 . . . . . 11 . . . 2 Part Schematic 8 | . . . . . . . . . 8 . . . . Robot Schematic 6 | . . . . . . . . . 6 . . . . Prototype ID Bank 3 | . . . . . . . . . 3 . . . . Open Door 2 | . . . . . . . . . . . . 1 1 Branch Access Points 2 | . 1 . . . 1 . . . . . . . . Alert Level 1 | . . . . . . 1 . . . . . . . Locate Traps 2 | . 2 . . . . . . . . . . . . Registered Components 1 | . . . . . 1 . . . . . . . . Zone Layout 2 | . . 1 . . 1 . . . . . . . . Fabricator Hacks 2 | . . . . . . . . . . . 2 . . Load Schematic 1 | . . . . . . . . . . . 1 . . Build 1 | . . . . . . . . . . . 1 . . Repair Station Hacks 2 | . . . . . 2 . . . . . . . . Scan Component 1 | . . . . . 1 . . . . . . . . Repair 1 | . . . . . 1 . . . . . . . . Recycling Unit Hacks 1 | . . . . . . 1 . . . . . . . Retrieve Matter 1 | . . . . . . 1 . . . . . . . Scanalyzer . | . . . . . . . . . . . . . . Garrison Access Hacks . | . . . . . . . . . . . . . . Unauthorized Hacks . | . . . . . . . . . . . . . . Terminals . | . . . . . . . . . . . . . . Fabricators . | . . . . . . . . . . . . . . Repair Stations . | . . . . . . . . . . . . . . Recycling Units . | . . . . . . . . . . . . . . Scanalyzers . | . . . . . . . . . . . . . . Garrison Access . | . . . . . . . . . . . . . . Data Cores Recovered . | . . . . . . . . . . . . . . Used . | . . . . . . . . . . . . . . Hacking Detections 20 | . 4 . . . 2 8 . . . . 1 1 4 Full Trace Events 5 | . . . . . . 1 . . . . 1 . 3 Feedback Events 1 | . . . . . . 1 . . . . . . . Corruption 1 | . . . . . . 1 . . . . . . . Feedback Blocked . | . . . . . . . . . . . . . . Robot Schematics Acquired 6 | . . . . . . . . . 6 . . . . Robots Built . | . . . . . . . . . . . . . . Authchips . | . . . . . . . . . . . . . . Time . | . . . . . . . . . . . . . . Total Robot Build Rating . | . . . . . . . . . . . . . . Part Schematics Acquired 8 | . . . . . . . . . 8 . . . . Parts Built 1 | . . . . . . . . . . . 1 . . Authchips . | . . . . . . . . . . . . . . Time 76 | . . . . . . . . . . . 76 . . Total Part Build Rating 5 | . . . . . . . . . . . 5 . . Parts Repaired 1 | . . . . . 1 . . . . . . . . Time 26 | . . . . . 26 . . . . . . . . Parts Recycled . | . . . . . . . . . . . . . . Recycled Matter . | . . . . . . . . . . . . . . Retrieved Matter . | . . . . . . . . . . . . . . Retrieved Components . | . . . . . . . . . . . . . . Parts Scanalyzed . | . . . . . . . . . . . . . . Part Schematics Acquired . | . . . . . . . . . . . . . . Parts Damaged . | . . . . . . . . . . . . . . Bothacking | -11 -10 -10 -10 -9 -8 -7 -7 -7 -7 -6 -6 -6 -6 ------------ Run | Yrd Mat Min Exi Min Mat Fac Low Low Dat Pro Fac Ext Cet Used RIF Installer . | . . . . . . . . . . . . . . Robots Hacked . | . . . . . . . . . . . . . . Non-combat . | . . . . . . . . . . . . . . Combat . | . . . . . . . . . . . . . . Robot Hacks Applied . | . . . . . . . . . . . . . . Relay Couplers Released . | . . . . . . . . . . . . . . Fabnet Peak Effective % . | . . . . . . . . . . . . . . Robots Rewired 5 | . . . . . . . 4 . . . 1 . . Allies Hacked 1 | . . . . . . . . . . . 1 . . Hacks Repelled . | . . . . . . . . . . . . . . Allies | -11 -10 -10 -10 -9 -8 -7 -7 -7 -7 -6 -6 -6 -6 -------- Run | Yrd Mat Min Exi Min Mat Fac Low Low Dat Pro Fac Ext Cet Total Allies 7 | . . . . 2 . . 4 . . . 1 . . Largest Group 4 | . . . . 2 2 . 4 . . . 1 . . Highest-Rated Group 64 | . . . . 52 52 . 64 . . . 40 . . Highest-Rated Ally 40 | . . . . 31 31 . 16 . . . 40 . . Total Orders . | . . . . . . . . . . . . . . Ally Attacks 35 | . . . . . 11 . 24 . . . . . . Total Damage 477 | . . . . . 146 . 331 . . . . . . Kills 2 | . . . . . . . 2 . . . . . . Allies Corrupted . | . . . . . . . . . . . . . . Allies Melted . | . . . . . . . . . . . . . . Intel | -11 -10 -10 -10 -9 -8 -7 -7 -7 -7 -6 -6 -6 -6 ------- Run | Yrd Mat Min Exi Min Mat Fac Low Low Dat Pro Fac Ext Cet Active Infowar (turns) 13361 | 24 1269 1886 1175 239 462 2192 1329 1698 163 1093 948 796 87 Sensors 6719 | . . . . . . 605 1329 1698 163 1093 948 796 87 Seismic 6642 | 24 1269 1886 1175 239 462 1587 . . . . . . . Robot Analysis Total . | . . . . . . . . . . . . . . Derelict Logs Recovered 5 | . . 1 . . . . . 2 . 2 . . . Drone Launches . | . . . . . . . . . . . . . . Drone Recoveries . | . . . . . . . . . . . . . . Exploration | -11 -10 -10 -10 -9 -8 -7 -7 -7 -7 -6 -6 -6 -6 ------------- Run | Yrd Mat Min Exi Min Mat Fac Low Low Dat Pro Fac Ext Cet Turns Passed 15426 | 219 1269 1886 1175 239 1307 3138 1329 1698 163 1093 948 809 153 Spaces Moved 7526 | 115 483 775 489 65 602 1484 768 1013 96 645 453 417 121 Core 68 | 4 . . . . . . . . . . . . 64 Treads 7458 | 111 483 775 489 65 602 1484 768 1013 96 645 453 417 57 Legs . | . . . . . . . . . . . . . . Wheels . | . . . . . . . . . . . . . . Hover . | . . . . . . . . . . . . . . Flight . | . . . . . . . . . . . . . . Fastest Speed 50 | 50 160 240 240 240 160 160 155 155 163 163 162 160 50 Average Speed 178 | 156 231 240 240 240 161 160 158 159 163 163 163 161 99 Slowest Speed 243 | 160 240 240 240 240 240 160 160 243 163 243 165 163 170 Overloaded Moves . | . . . . . . . . . . . . . . Propulsion Burnouts . | . . . . . . . . . . . . . . Robots Hopped . | . . . . . . . . . . . . . . Potential Cave-ins . | . . . . . . . . . . . . . . Cave-ins Triggered . | . . . . . . . . . . . . . . Exploration Rate (%) 59 | 7 91 100 89 17 50 37 72 94 69 75 12 47 67 Regions Visited 13 Branch Regions 9 Pre-discovered Areas 2 | . . 1 . . . . . . 1 . . . . Known Exits Taken 8 | . 1 . . . . 1 1 1 1 1 1 1 . Unknown Exits Taken 5 | 1 . 1 1 1 1 . . . . . . . . Scrap Searched 10 | . . 2 . . . . 1 3 . 4 . . . Spaces Dug 28 | . . . . . . . 4 . . 24 . . . Terrain Destroyed 822 | . 47 . 5 . 59 105 27 106 . 61 68 289 55 Melee . | . . . . . . . . . . . . . . Projectile 3 | . . . . . . . . . . . 2 1 . AOE 818 | . 47 . 5 . 59 105 26 106 . 61 66 288 55 Terrain Rammed . | . . . . . . . . . . . . . . Walls Destroyed . | . . . . . . . . . . . . . . Machines Disabled . | . . . . . . . . . . . . . . Actions | -11 -10 -10 -10 -9 -8 -7 -7 -7 -7 -6 -6 -6 -6 --------- Run | Yrd Mat Min Exi Min Mat Fac Low Low Dat Pro Fac Ext Cet Total 8872 | 133 548 788 489 149 771 2069 836 1071 103 668 619 482 146 Wait 714 | . . . . 85 32 440 15 22 . 1 110 5 4 Move 7513 | 114 482 774 488 64 601 1483 767 1012 95 644 452 416 121 Hop . | . . . . . . . . . . . . . . Pick Up 52 | 2 6 2 . . 19 10 1 5 . 2 4 1 . Fast Attach 22 | 7 1 . . . 2 5 . . 4 1 1 1 . Attach 26 | . . . . . 3 5 2 . . . 4 6 6 Detach 5 | . . . . . . . . . . . . 3 2 Swap 73 | . 4 1 . . 14 18 7 8 . 7 11 3 . Drop 51 | . 2 1 . . 12 16 . 5 4 4 6 . 1 Fire 353 | 10 49 . 1 . 86 80 21 19 . 9 27 46 5 Melee 1 | . . . . . . 1 . . . . . . . Ram 1 | . . . . . . . . . . . . . 1 Kick . | . . . . . . . . . . . . . . Crush 34 | . 4 10 . . 2 11 . . . . . 1 6 Escape Stasis . | . . . . . . . . . . . . . . Rewire 27 | . . . . . . . 23 . . . 4 . . Trap . | . . . . . . . . . . . . . . Miscellaneous . | . . . . . . . . . . . . . . Route ------- -11/Scrapyard -10/Materials (discovered 4 exits: [*Mat x2] / *Min x2) -10/Mines (discovered 4 exits: [*Mat x2] / *Exi / [*Sub]) -10/Exiles -9/Mines -8/Materials -7/Factory (discovered 3 exits: *Sto x2 / *Low) -7/Lower Caves -7/Lower Caves -7/Data Miner -6/Proximity Caves -6/Factory (discovered 3 exits: *Fac x2 / *Ext) -6/Extension (discovered 3 exits: *Fac x2 / *Cet) -6/Cetus History --------- Turn | Location | Event 5 | -11/Scrapyard | Discovered new exit (range 15) 220 | -11/Scrapyard | Entered Materials 322 | -10/Materials | Build established: Mutant 842 | -10/Materials | Discovered new exit (range 14) 842 | -10/Materials | Discovered new exit (range 10) 1239 | -10/Materials | Discovered new exit (range 3) 1347 | -10/Materials | Identified exit to Mines 1489 | -10/Materials | Entered Mines 1495 | -10/Mines | Met a Derelict bent on vengeance 1977 | -10/Mines | Discovered new exit (range 11) 2073 | -10/Mines | Discovered new exit (range 6) 2087 | -10/Mines | Received a Rocket Launcher from a helpful Derelict 2260 | -10/Mines | Learned Materials terminal intel 2592 | -10/Mines | Deemed a non-threat by the Exiles lab entrance 2592 | -10/Mines | Discovered new exit (range 5) 2779 | -10/Mines | Found a Scrap Suit stashed away for nefarious purposes 2784 | -10/Mines | Found Scrap Suit 3116 | -10/Mines | Discovered new exit (range 7) 3117 | -10/Mines | Learned location of Storage (-7) 3375 | -10/Mines | Entered Exiles 3375 | -10/Exiles | Found Exiles lab abandoned 4004 | -10/Exiles | Discovered new exit (range 11) 4550 | -10/Exiles | Entered Mines 4578 | -9/Mines | Assembled infested the area 4745 | -9/Mines | Discovered new exit (range 9) 4789 | -9/Mines | Entered Materials 4789 | -8/Materials | Accompanied by 2 allies 4789 | -8/Materials | Evolved 4 slots: Propulsion x1, Utility x2, Weapon x1 4790 | -8/Materials | Loaded intel: 12 terminal locations 4794 | -8/Materials | Led the pair of lost Derelicts to an unsafe place 4833 | -8/Materials | Repaired Lgt. Treads 5168 | -8/Materials | Build established: Scavenger-Gunner 5201 | -8/Materials | Discovered new exit (range 15) 5572 | -8/Materials | Build established: Tank 6096 | -8/Materials | Entered Factory 6096 | -7/Factory | Evolved 2 slots: Utility x1, Weapon x1 6439 | -7/Factory | Discovered new exit (range 8) 7895 | -7/Factory | Identified exit to Storage 8339 | -7/Factory | Found Prototype Launcher 8339 | -7/Factory | Identified Rocket Array 9044 | -7/Factory | Discovered exit to Storage (range 10) 9154 | -7/Factory | Build established: Skirmisher 9212 | -7/Factory | Discovered new exit (range 6) 9220 | -7/Factory | Identified exit to Lower Caves 9234 | -7/Factory | Entered Lower Caves 9311 | -7/Lower Caves | Spotted B-75 Beast 9415 | -7/Lower Caves | Attacked by a delusional Derelict stockpiling Unaware 9546 | -7/Lower Caves | Allies destroyed B-75 Beast 9953 | -7/Lower Caves | P-60 Hacker assimilated allied Trooper 4c 9956 | -7/Lower Caves | P-60 Hacker assimilated allied Trooper 4d 10488 | -7/Lower Caves | Discovered new exit (range 7) 10498 | -7/Lower Caves | Identified exit to Lower Caves 10563 | -7/Lower Caves | Entered another Lower Caves area 10714 | -7/Lower Caves | Identified exit to Data Miner 11046 | -7/Lower Caves | Encountered a Warlord checkpoint 11588 | -7/Lower Caves | Learned Factory security intel 11669 | -7/Lower Caves | Attacked by a delusional Derelict stockpiling parts 12261 | -7/Lower Caves | Entered Data Miner 12261 | -7/Data Miner | Discovered new exit (range 6) 12294 | -7/Data Miner | Met Data Miner 12322 | -7/Data Miner | Learned location of Section 7 (-2) 12322 | -7/Data Miner | Acquired the access code to Warlord's prototype stash 12360 | -7/Data Miner | Received God Mode back door access code from Data Miner 12423 | -7/Data Miner | Identified exit to Proximity Caves 12424 | -7/Data Miner | Entered Proximity Caves 12441 | -6/Proximity Caves | Learned 12 Factory zone layouts 12633 | -6/Proximity Caves | Attracted the attention of an 0b10 checkpoint 13099 | -6/Proximity Caves | Learned Factory terminal intel 13429 | -6/Proximity Caves | Discovered new exit (range 6) 13481 | -6/Proximity Caves | Identified exit to Factory 13517 | -6/Proximity Caves | Entered Factory 13517 | -6/Factory | Evolved 2 slots: Propulsion x1, Utility x1 13518 | -6/Factory | Identified exit to Extension 13518 | -6/Factory | Identified exit to Factory 13520 | -6/Factory | Loaded intel: 28 terminal locations 14193 | -6/Factory | Discovered exit to Factory (range 13) 14365 | -6/Factory | Fabricated Lgt. Regenerative Plating (x1) 14465 | -6/Factory | Entered Extension 14650 | -6/Extension | Build established: Derelict-Skirmisher 14674 | -6/Extension | Spotted B-75 Beast 14687 | -6/Extension | Destroyed B-75 Beast 14740 | -6/Extension | Disrupted transfer network 14761 | -6/Extension | Spotted B-75 Beast 14783 | -6/Extension | Destroyed B-75 Beast 14799 | -6/Extension | Lost 4 parts (1p3w) 14845 | -6/Extension | Destroyed 8 combat bots 14877 | -6/Extension | Discovered exit to Factory (range 3) 15033 | -6/Extension | Build established: Mutant 15229 | -6/Extension | Destroyed 10 combat bots 15250 | -6/Extension | Discovered new exit (range 16) 15252 | -6/Extension | Discovered exit to Factory (range 15) 15273 | -6/Extension | Identified exit to Cetus 15274 | -6/Extension | Entered Cetus 15295 | -6/Cetus | Spotted Cetus Guard 15296 | -6/Cetus | Spotted Cetus Guard 15300 | -6/Cetus | Spotted Cetus Guard 15306 | -6/Cetus | Destroyed Cetus Guard 15308 | -6/Cetus | Spotted Cetus Guard 15348 | -6/Cetus | Core integrity fell below 50% 15377 | -6/Cetus | Lost 8 parts (1p3n3u1w) 15390 | -6/Cetus | Incoming investigation squad redirected 15394 | -6/Cetus | Released all parts (2) 15400 | -6/Cetus | Incoming investigation squad redirected 15418 | -6/Cetus | Incoming investigation squad redirected 15418 | -6/Cetus | Core integrity fell below 20% 15421 | -6/Cetus | Lost 4 parts (3n1u) 15424 | -6/Cetus | Cetus Manufacturing Module disabled 15427 | -6/Cetus | Destroyed by Cetus Guard with Advanced Variable Charge Gun Last Messages --------------- 15391_ Slammed into Cetus Guard. 15393_ Penetrated by Slug. 15394_ Released Adv. Signal Interpreter. 15394_ Released Arm. Treads. 15400_ ALERT: Higher priority target reported, redirecting investigation. 15401_ Connecting with Cetus Terminal... >>Open(Door) Sealed Heavy Doors opened. 15401_ ALERT: Suspicious activity at Terminal C004. Dispatching Investigation squad. 15414_ Slammed into G-50 Soldier. 15418_ ALERT: Higher priority target reported, redirecting investigation. 15422_ Connecting with Cetus Manufacturing Controls... 15424_ Penetrated by Slug. 15424_ Cetus Manufacturing Module disabled. 15426_ Slug penetrates Cetus Manufacturing Module. Map ----- +----------------------------------------------------+ | ?????????????????????????????????????????????????? | | ?????????????????????????????????????????????????? | | ?????????????????????????????????????????????????? | | ?????????????????????????????????????????????????? | | ?????????????????????????????????????????????????? | | ?????????????????????????????????????????????????? | | ?????????????????????????????????????????????????? | | ?????????????????????????????????????????????????? | | ?????????????????????????????????????????????????? | | ?????????????????????????????????????????????????? | | ?????????????????????????????????????????????????? | | ?????????????????????????????????????????????????? | | ?????????????????????????????????????????????????? | | ?????????????????????????????????????????????????? | | ?????????????????????????????????????????????????? | | ?? ????????????????????????????????????????????? | | ?# #???????????????????????????????????????????? | | ?# #???????????????????????????????????????????? | | ?# #???????????????????????????????????????????? | | ?# #????????????#??##?######???????????????????? | | ?# #????????????"""" """ """""##???????????????? | | ?# #????????????? """"""" " #""??????????????? | | ?# #??????????#"""""""""""""""#"######?????????? | | ?# ########???#""""" """ """""#""""""#?????????? | | ?# ## # # ###?#""""""" """""""#" ""#?????????? | | ?# # # ##?#""" " @ " """#T ""#?????????? | | ## # # ###" """ """ #" ""#?????????? | | "" # "# ########### | | + + | | ; + | | + + | | "#""# ### g ########### | | #### # # # "##" " YYY """""""#T #?????????? | | ??# ## ########//############ #######???? | | ?# ??### ###?#" " ""# #???? | | ?#?????# ####???###" """# " #???? | | ???????###??????#" " !!* ""# """""" " " #???? | | ????????????????###" =!! ""# " " " """ #???? | | ????????????????#" ]!! ### """""" " #???? | | ????????????????#" ! ""#" """"""""" #???? | | ????????????????#" """#""""""""""" "#???? | | ????????????????#" """#" """"""""""""#???? | | ????????????????### ### """"""? "????? | | ????????????????# """#" """"""??????????? | | ????????????????#" " """#"""""""""???????????? | | ????????????????#" " ""#" " ?????????????? | | ????????????????#" " #"### " ?????????????? | | ????????????????# #""?# ""???????????????? | | ????????????????#""" #"""# "???????????????? | | ????????????????#########????###?????????????????? | +----------------------------------------------------+ Best States ------------- Heat Dissipation 64 Energy Generation 18 Energy Capacity 300 Matter Stores 300 Matter Capacity 500 Sight Range 16 Robot Scan Range 16 Terrain Scan Density 10 Armor Coverage 225 Resistance: KI 20 Resistance: TH 20 Resistance: EX 20 Resistance: EM 20 Resistance: I 20 Resistance: S 20 Resistance: P 20 Weapon Cycling 15 Evasion (%) 50 Recoil Reduction 4 Kinecelleration 30 Offensive Hacking 10 Item Schematics ----------------- Combat Drone Bay | -7/Data Miner | Free Lgt. Regenerative Plating | -7/Data Miner | Free Cld. Aerolev Unit | -7/Data Miner | Free Thermal Defense Suite | -7/Data Miner | Free Antimatter Cannon | -7/Data Miner | Free Thunder Leg | -7/Data Miner | Free Imp. Dynamic Insulation System | -7/Data Miner | Free KE Penetrator | -7/Data Miner | Free Robot Schematics ------------------ L-41 Fighter | -7/Data Miner | Free H-66 Slayer | -7/Data Miner | Free S-27 Virus | -7/Data Miner | Free M-22 Extractor | -7/Data Miner | Free E-15 Imp | -7/Data Miner | Free B-48 Gladiator | -7/Data Miner | Free Fabricated ------------ Lgt. Regenerative Plating | x1 | -6/Factory Repaired ---------- Lgt. Treads | 37% | -8/Materials Alien Tech Used ----------------- None Achievements -------------- None Challenges ------------ None Game ------ Seed SmartbombFieldthrustStorage Manual? 0 Play Time 01:34:39 Cumulative 49.9 hours Start 2025.09.07 @ 21:48:22 End 2025.09.07 @ 23:39:27 Sessions 1 Manual Loads 0 Difficulty Adventurer Special Mode None Game No. 29 Rogue 0 Adventurer 29 Explorer 0 Win Type - Total 1 Types 1/0/0/0/0/0/0/0/0/0 Lore% 20 Gallery% 41 Achievement% 41 Wizard Run 0 Options --------- Layout 1 ASCII 0 Keyboard 0 Movement Mouse Keybinds 0 Fullscreen 1 Font 24/Smallcaps Map View 50x35 Zoom Use 36% Tactical HUD 1 Map Filters NONE Filters NONE Steam 1 RUN: 4fef125b-b8d9-4952-bb44-b55dbe0e8939